bitfinex/quotes_ETHUSD_20220106
["timestamp","ask_amount","ask_price","bid_price","bid_amount"]
[1641445215600,1.36618585,3450.7,3450.0,1.76450082]
[1641445216000,1.36618585,3450.7,3450.1,0.00682108]
[1641445216400,0.24273087,3451.4,3450.1,0.00682108]
[1641445216701,1.76518738,3451.0,3450.1,0.00682108]
[1641445216901,1.76518738,3451.0,3450.7,2.72618297]
[1641445217102,2.06518738,3451.0,3450.1,0.00682108]
[1641445217402,3.20868738,3451.0,3449.5,0.01023162]
[1641445217600,3.3352604,3450.9,3449.5,0.01023162]
[1641445217805,3.35468686,3450.9,3449.3,0.01136847]
[1641445218001,1.0726792,3450.3,3449.3,0.01136847]
[1641445218240,0.7247577,3450.8,3449.5,0.72476]
[1641445218642,0.7247577,3450.8,3449.6,0.0096632]
[1641445218844,3.25210392,3450.7,3449.6,0.0096632]
[1641445219043,3.25210392,3450.7,3449.5,0.01023162]
[1641445219044,0.01293396,3450.3,3449.5,0.01023162]
[1641445219244,6.345,3450.2,3449.1,0.01250532]
[1641445219444,6.345,3450.2,3448.9,6.17]
[1641445219445,6.92589848,3449.2,3449.0,0.01307374]
[1641445219646,8.07859848,3449.2,3449.0,0.01307374]
[1641445219856,17.395,3449.1,3449.0,7.374e-05]
[1641445220051,17.395,3449.1,3448.9,6.17]
[1641445220052,17.15,3449.0,3448.9,6.17]
[1641445220253,17.495,3449.0,3448.1,6.25839564]
[1641445220456,1.26154397,3448.4,3447.9,1.6267456]
[1641445220752,2.15884397,3448.4,3448.2,0.00454739]
[1641445220951,1.85884397,3448.4,3448.2,0.00454739]
[1641445221149,1.85884397,3448.4,3447.6,0.00795793]
[1641445222401,1.85884397,3448.4,3447.4,0.72516]
[1641445222599,1.26154397,3448.4,3447.4,0.72516]
[1641445222805,1.26154397,3448.4,3447.8,2.17855131]
[1641445223008,2.11586765,3448.8,3448.6,0.74219163]
[1641445223204,1.224932,3448.7,3448.6,0.74219163]
[1641445223603,1.524932,3448.7,3448.6,0.74219163]
[1641445223804,8.124932,3448.7,3448.6,0.74219163]
[1641445224205,1.524932,3448.7,3448.6,0.74219163]
[1641445224405,11.374932,3448.7,3448.6,0.69219163]
[1641445224805,8.974932,3448.7,3448.6,0.69219163]
[1641445225006,1.524932,3448.7,3448.6,0.69219163]
[1641445225407,1.63070068,3448.7,3448.6,0.69219163]
[1641445225845,8.58070068,3448.7,3448.6,0.69219163]
[1641445226249,1.63070068,3448.7,3448.6,0.69219163]
[1641445226847,6.98070068,3448.7,3448.6,0.69219163]
[1641445227050,1.63070068,3448.7,3448.6,0.69219163]
[1641445227848,8.33070068,3448.7,3448.6,0.69219163]
[1641445228048,1.63070068,3448.7,3447.9,0.69219163]
[1641445228353,1.63070068,3448.7,3448.0,0.00568424]
[1641445229392,1.58070068,3448.7,3448.0,0.00568424]
[1641445229793,1.58070068,3448.7,3448.0,0.69787587]
[1641445229992,0.35576868,3448.7,3448.0,0.69787587]
[1641445230196,0.10576868,3448.7,3448.1,0.00511581]
[1641445230397,0.08826174,3449.1,3448.1,0.69730744]
[1641445230594,0.05288434,3448.4,3448.1,0.69730744]
[1641445230794,0.10576868,3448.4,3448.2,0.00454739]
[1641445230999,0.10576868,3448.4,3448.3,12.54219163]
[1641445231401,0.08826174,3449.1,3448.5,0.69219163]
[1641445231599,0.08826174,3449.1,3448.5,2.46969163]
[1641445231600,0.2088806,3449.1,3448.5,2.46969163]
[1641445231800,0.1206806,3449.1,3448.6,0.74519193]
[1641445232000,0.1206806,3449.1,3448.9,0.69219163]
[1641445232999,0.16702214,3449.4,3449.1,0.69219163]
[1641445233248,0.12061886,3449.5,3449.2,0.69219163]
[1641445233453,0.00170527,3449.3,3449.2,0.69219163]
[1641445233656,0.00227369,3449.4,3449.2,0.69219163]
[1641445233851,0.00170527,3449.3,3449.2,0.69219163]
[1641445235255,0.34670527,3449.3,3449.2,0.69219163]
[1641445235459,0.34670527,3449.3,3448.7,0.00170527]
[1641445235460,16.95,3449.2,3448.7,0.00170527]
[1641445235657,1.7954445,3449.1,3448.7,0.00170527]
[1641445235857,1.7954445,3449.1,3447.5,0.00852635]
[1641445236056,1.29757439,3448.1,3447.5,1.917848]
[1641445236261,1.63746979,3448.5,3447.5,1.917848]
[1641445236458,0.7252339,3448.7,3447.6,0.00795793]
[1641445236656,1.7954445,3449.1,3447.8,0.01247159]
[1641445236657,0.345,3449.1,3447.8,0.01247159]
[1641445236889,0.345,3449.1,3447.8,0.73755159]
[1641445237094,0.345,3449.1,3447.9,0.00625266]
[1641445237292,1.10100422,3448.4,3447.9,0.00625266]
[1641445237496,1.40100422,3448.4,3447.9,0.00625266]
[1641445237695,2.33390422,3448.4,3447.9,0.00625266]
[1641445237897,2.33390422,3448.4,3447.2,0.01023162]
[1641445238497,2.33004188,3448.4,3447.5,1.7811649]
[1641445238699,1.74214188,3448.4,3447.5,1.7811649]
[1641445238902,1.74214188,3448.4,3447.6,0.00795793]
[1641445239300,1.0071315,3447.8,3447.6,0.00795793]
[1641445239699,1.0071315,3447.8,3447.1,6.17]
[1641445239700,1.0071315,3447.8,3447.2,0.01023162]
[1641445240643,1.0071315,3447.8,3447.1,0.01080005]
[1641445241244,0.7253033,3448.3,3447.2,11.95]
[1641445241453,1.37248892,3447.9,3447.1,0.01080005]
[1641445241647,1.37248892,3447.9,3447.3,0.0096632]
[1641445241846,1.37248892,3447.9,3447.1,0.01080005]
[1641445243054,0.64113766,3448.4,3447.1,0.01080005]
[1641445243655,0.64113766,3448.4,3447.8,1.64012095]
[1641445243856,0.29613766,3448.4,3447.8,1.64012095]
[1641445244059,0.08826174,3448.5,3447.9,0.00625266]
[1641445244256,1.35900113,3448.5,3447.9,0.00625266]
[1641445245299,0.08826174,3448.5,3447.9,0.00625266]
[1641445245495,0.08826174,3448.5,3448.1,0.72505]
[1641445245893,0.08826174,3448.5,3448.2,0.05527399]
[1641445246094,0.08826174,3448.5,3448.2,0.00454739]
[1641445246795,0.08826174,3448.5,3447.7,0.00738951]
[1641445246996,0.08826174,3448.5,3447.5,0.00852635]
[1641445247194,0.08826174,3448.5,3447.2,0.01023162]
[1641445247395,0.08826174,3448.5,3446.9,0.7253]
[1641445247396,0.08826174,3448.5,3447.1,2.1464321]
[1641445247794,0.08826174,3448.5,3447.2,0.01023162]
[1641445248242,0.03966287,3447.7,3447.2,0.01023162]
[1641445249252,0.03966287,3447.7,3447.2,0.73546162]
[1641445249647,0.03966287,3447.7,3447.3,0.0096632]
[1641445250050,6.287e-05,3447.7,3447.3,0.0096632]
[1641445250247,0.08826174,3448.5,3447.9,0.7251]
[1641445250647,0.08826174,3448.5,3448.0,0.3]
[1641445251047,0.08826174,3448.5,3448.1,0.00511581]
[1641445251648,0.08826174,3448.5,3447.3,0.0096632]
[1641445251909,0.08826174,3448.5,3447.3,0.7348732]
[1641445252092,0.08826174,3448.5,3447.7,1.98298164]
[1641445252494,0.08826174,3448.5,3447.8,0.00682108]
[1641445253798,0.04413087,3448.5,3447.8,0.00682108]
[1641445254601,1.4507135,3448.4,3447.8,0.00682108]
[1641445254801,2.2377135,3448.4,3447.3,0.0096632]
[1641445255100,0.3,3448.3,3447.3,0.0096632]
[1641445255301,17.25,3448.3,3447.3,0.0096632]
[1641445255503,10.470087,3447.4,3447.3,0.0096632]
[1641445255744,11.724087,3447.4,3447.3,0.0096632]
[1641445255955,12.724087,3447.4,3447.3,0.0096632]
[1641445256848,12.439487,3447.4,3447.3,0.0096632]
[1641445257052,11.439487,3447.4,3447.3,0.0096632]
[1641445257266,1.420087,3447.4,3447.3,0.0096632]
[1641445257446,8.270087,3447.4,3447.3,0.0096632]
[1641445258451,15.416887,3447.4,3447.3,0.0096632]
[1641445258854,16.416887,3447.4,3447.3,0.0096632]
[1641445259703,10.166887,3447.4,3447.3,0.0096632]
[1641445260499,3.316887,3447.4,3447.3,0.0096632]
[1641445260700,0.7254222,3447.7,3447.3,0.0096632]
[1641445260901,1.90096274,3448.1,3447.3,0.0096632]
[1641445260902,0.45011834,3448.1,3447.3,0.0096632]
[1641445261702,1.73327072,3448.1,3447.6,1.88179514]
[1641445262003,2.03327072,3448.1,3447.7,0.00738951]
[1641445262805,3.05862902,3448.1,3447.7,0.00738951]
[1641445263004,3.05862902,3448.1,3447.3,0.0096632]
[1641445263249,1.0,3448.0,3447.3,0.0096632]
[1641445263449,1.3,3448.0,3447.3,0.0096632]
[1641445264056,0.3,3448.0,3447.3,0.0096632]
[1641445264255,0.75011834,3448.1,3447.3,0.0096632]
[1641445264654,0.75011834,3448.1,3447.6,2.20773834]
[1641445264862,0.75011834,3448.1,3447.3,0.0096632]
[1641445265055,0.75011834,3448.1,3447.7,0.00738951]
[1641445265257,0.75011834,3448.1,3447.3,0.0096632]
[1641445265757,1.47544504,3448.1,3447.3,0.0096632]
[1641445265959,1.88169272,3447.7,3447.3,0.0096632]
[1641445266158,5.16431672,3448.1,3447.3,0.0096632]
[1641445266159,6.16431672,3448.1,3447.3,0.0096632]
[1641445266358,0.3,3447.7,3447.3,0.0096632]
[1641445266558,3.60381769,3448.0,3447.3,0.0096632]
[1641445266759,0.3,3448.0,3447.3,0.0096632]
[1641445266994,1.3,3447.9,3447.3,0.0096632]
[1641445267196,1.39267123,3447.6,3447.3,0.0096632]
[1641445267396,1.69267123,3447.6,3447.3,0.0096632]
[1641445268795,0.03366875,3447.5,3447.3,0.0096632]
[1641445268996,17.1,3447.4,3445.8,3.7511]
[1641445269200,0.7256607,3446.7,3445.8,3.7511]
[1641445269495,0.3,3446.6,3445.9,0.00795793]
[1641445269900,0.3,3446.6,3445.8,0.00852635]
[1641445270097,0.3,3446.6,3445.9,1.93752436]
[1641445270496,0.3,3446.6,3446.0,0.00738951]
[1641445270946,0.7255787,3447.0,3446.0,0.00738951]
[1641445271146,0.38913088,3447.3,3446.0,0.00738951]
[1641445271345,0.38913088,3447.3,3446.1,0.72549]
[1641445271546,0.00682109,3447.2,3446.1,0.72549]
[1641445271946,0.00625266,3447.1,3446.1,0.72549]
[1641445272348,1.04087969,3446.7,3445.9,1.4509]
[1641445272554,1.04087969,3446.7,3445.5,0.01235157]
[1641445272748,1.93837003,3446.6,3445.7,1.61363161]
[1641445272950,2.23837003,3446.6,3445.6,0.00227369]
[1641445273149,0.00284212,3446.5,3445.6,1.45333369]
[1641445273349,0.00284212,3446.5,3445.9,0.72552]
[1641445273549,0.0022737,3446.4,3446.1,0.3]
[1641445273949,0.725555,3447.1,3446.1,0.3]
[1641445273950,0.00170527,3446.3,3446.1,0.3]
[1641445274398,0.00113685,3446.2,3446.1,0.3]
[1641445274599,0.00113685,3446.2,3446.1,2.26193157]
[1641445274797,0.04526773,3446.2,3446.1,2.26193157]
[1641445275202,0.04526773,3446.2,3446.1,0.3]
[1641445275398,0.04526773,3446.2,3445.9,0.72552]
[1641445275599,0.04526773,3446.2,3445.7,0.00170527]
[1641445275799,4.7,3446.1,3445.3,3.84130527]
[1641445275998,4.7,3446.1,3445.0,5.169]
[1641445276198,1.00749283,3446.0,3445.4,0.00170527]
[1641445276600,0.00113685,3445.9,3445.4,0.00170527]
[1641445276998,0.93491359,3446.0,3445.4,0.00170527]
[1641445277198,0.93491359,3446.0,3445.0,0.00511581]
[1641445278000,1.35553245,3446.0,3445.0,0.00511581]
[1641445278242,6.16265788,3446.0,3445.0,0.00511581]
[1641445278444,2.09672817,3445.4,3445.0,0.00511581]
[1641445278644,7.16265788,3446.0,3444.8,0.00625266]
[1641445278844,0.3,3445.4,3444.8,0.00625266]
[1641445279044,1.345,3445.9,3444.8,0.00625266]
[1641445279244,1.0785081,3445.3,3444.8,0.00625266]
[1641445279448,1.3785081,3445.3,3444.8,0.00625266]
[1641445279844,1.0,3445.8,3444.8,0.00625266]
[1641445280045,0.12061886,3445.5,3444.8,0.00625266]
[1641445280245,1.90189686,3445.3,3444.8,0.00625266]
[1641445280645,2.20189686,3445.3,3444.7,0.00682108]
[1641445281245,2.20189686,3445.3,3444.3,0.00909477]
[1641445281993,1.31911427,3444.5,3444.3,0.00909477]
[1641445282198,1.31911427,3444.5,3444.1,0.01023162]
[1641445282397,1.31911427,3444.5,3444.0,0.01080004]
[1641445282600,1.31911427,3444.5,3443.8,0.01193689]
[1641445282797,2.10961427,3444.5,3443.8,0.01193689]
[1641445283101,1.35693833,3443.8,3443.4,0.01421059]
[1641445284105,0.345,3444.2,3443.4,0.01421059]
[1641445284309,17.1,3444.1,3443.3,3.54195254]
[1641445284509,0.65393288,3442.9,3442.2,4.38190825]
[1641445284705,1.70573288,3442.9,3442.2,4.38190825]
[1641445285104,3.24761772,3442.8,3442.2,4.38190825]
[1641445285757,1.85609029,3442.7,3442.2,2.78937964]
[1641445285950,1.85609029,3442.7,3442.2,1.47367964]
[1641445286649,1.33571711,3442.2,3441.8,6.89]
[1641445286848,1.82940468,3442.2,3441.8,5.93627769]
[1641445287049,0.77316113,3441.8,3440.8,14.8]
[1641445287652,1.22628274,3441.1,3440.8,14.8]
[1641445287852,1.22628274,3441.1,3440.5,1.01359091]
[1641445288051,1.04186457,3440.8,3440.2,4.9307623]
[1641445288449,1.04186457,3440.8,3440.2,4.8207623]
[1641445289052,2.99704734,3440.7,3440.2,4.8207623]
[1641445289260,3.3344716,3440.7,3440.2,3.0899623]
[1641445289508,3.3344716,3440.7,3439.4,7.01965032]
[1641445289707,0.75878098,3439.6,3439.4,7.01965032]
[1641445290316,0.75878098,3439.6,3438.6,0.01242221]
[1641445290520,0.89647602,3440.2,3438.6,0.01242221]
[1641445290521,0.89647602,3440.2,3439.5,0.18889006]
[1641445290716,0.89647602,3440.2,3439.5,0.32703716]
[1641445290918,0.89647602,3440.2,3440.0,0.01254549]
[1641445291112,7.602e-05,3440.2,3440.0,0.01254549]
[1641445291314,7.602e-05,3440.2,3440.1,17.16319541]
[1641445291516,9.036e-05,3440.3,3440.2,17.1]
[1641445291719,7.374e-05,3440.3,3440.2,17.1494311]
[1641445291916,9.144e-05,3440.7,3440.3,14.75]
[1641445292116,9.144e-05,3440.7,3440.3,14.7]
[1641445292315,9.144e-05,3440.7,3440.4,1.81530732]
[1641445292517,9.144e-05,3440.7,3440.4,2.11530732]
[1641445292716,9.144e-05,3440.7,3440.5,0.01023163]
[1641445292920,9.144e-05,3440.7,3440.5,0.88202326]
[1641445293147,0.80258545,3441.8,3440.8,18.00308947]
[1641445293346,8.545e-05,3441.8,3441.7,17.98392234]
[1641445293657,0.00010729,3442.2,3441.9,0.87179163]
[1641445293850,0.00010729,3442.2,3441.8,15.55]
[1641445293851,1.79309012,3443.3,3442.1,2.20959157]
[1641445294049,1.79309012,3443.3,3442.3,0.87179163]
[1641445294252,1.79309012,3443.3,3442.4,0.87179163]
[1641445294253,0.00341054,3443.2,3442.4,0.87179163]
[1641445294449,0.00341054,3443.2,3442.4,0.87292848]
[1641445294650,0.00284211,3443.1,3442.4,0.87292848]
[1641445294849,1.45292,3442.9,3442.4,0.87292848]
[1641445295249,1.10034801,3442.8,3442.4,0.87292848]
[1641445295652,17.1,3442.6,3440.3,0.01239013]
[1641445295851,0.7267496,3441.2,3439.3,0.5]
[1641445296051,0.7267496,3441.2,3439.0,3.39236587]
[1641445296052,0.7267496,3441.2,3440.6,0.01023162]
[1641445296556,0.01244481,3440.7,3439.5,2.63636849]
[1641445296756,0.05657569,3440.7,3439.5,2.63636849]
[1641445297013,0.05657569,3440.7,3439.6,0.00568424]
[1641445297014,0.72691,3440.6,3439.6,0.00568424]
[1641445297212,0.712054,3440.6,3439.6,0.00568424]
[1641445297409,1.012054,3440.6,3439.6,0.00568424]
[1641445297611,0.04413088,3440.7,3440.5,1.95710884]
[1641445297811,0.04413088,3440.7,3439.6,2.90830196]
[1641445297812,1.2950628,3440.7,3439.6,2.90830196]
[1641445298011,1.2950628,3440.7,3439.6,0.00568424]
[1641445298213,1.2950628,3440.7,3439.7,0.00511581]
[1641445298413,1.2950628,3440.7,3439.4,0.5]
[1641445298414,1.2950628,3440.7,3439.5,0.00625266]
[1641445298813,1.33919368,3440.7,3440.3,2.18673083]
[1641445299123,0.00284211,3441.1,3440.4,17.44613685]
[1641445299315,0.00284211,3441.1,3441.0,16.96232327]
[1641445299516,2.4943957,3441.4,3441.0,16.96232327]
[1641445299714,2.4943957,3441.4,3441.0,17.26232327]
[1641445300015,2.4943957,3441.4,3441.1,11.9]
[1641445300016,0.76099352,3441.4,3441.1,11.9]
[1641445300215,0.16279036,3441.8,3441.3,0.01272014]
[1641445300216,0.29331468,3441.8,3441.3,0.01272014]
[1641445300415,0.30089806,3441.8,3441.4,0.345]
[1641445300645,0.30089806,3441.8,3441.5,0.13819997]
[1641445300646,0.0022737,3441.7,3441.5,0.13819997]
[1641445300848,3.09584202,3442.5,3441.6,0.345]
[1641445301048,0.16279036,3442.1,3441.7,5.61063676]
[1641445301248,0.04413088,3441.8,3441.7,5.55760715]
[1641445301456,0.04413088,3441.8,3441.7,6.12528797]
[1641445301658,0.04413088,3441.8,3441.7,2.72238537]
[1641445301854,3.088e-05,3441.8,3441.7,2.72238537]
[1641445302056,0.00758338,3442.5,3441.8,17.05]
[1641445302057,0.17037374,3442.5,3441.8,17.05]
[1641445302255,0.30089806,3442.5,3441.9,0.345]
[1641445302455,0.00227369,3442.4,3441.9,0.345]
[1641445302678,0.00227369,3442.4,3441.9,0.39556324]
[1641445302861,0.00170527,3442.3,3441.9,0.345]
[1641445303059,0.00170527,3442.3,3442.2,17.06260326]
[1641445303257,0.59423345,3442.5,3442.2,17.40760326]
[1641445303656,0.00227369,3442.4,3442.2,18.00760326]
[1641445304163,0.00170527,3442.3,3442.2,18.00760326]
[1641445304806,0.00170527,3442.3,3442.2,18.04040764]
[1641445305008,1.79309012,3443.3,3442.3,0.03849381]
[1641445305207,1.79309012,3443.3,3443.1,0.01238818]
[1641445305406,1.79309012,3443.3,3443.2,17.395]
[1641445305606,0.28340922,3444.5,3443.3,14.7]
[1641445305807,0.28340922,3444.5,3443.3,15.0814403]
[1641445306005,8.338e-05,3443.6,3443.4,1.81817609]
[1641445306206,0.28340922,3444.5,3443.6,17.05]
[1641445306406,0.28340922,3444.5,3443.8,0.01275524]
[1641445306608,9.22e-06,3444.5,3443.9,0.345]
[1641445306813,9.22e-06,3444.5,3443.5,0.3]
[1641445307009,9.22e-06,3444.5,3443.3,1.31359091]
[1641445307710,1.23195699,3444.0,3443.3,1.31359091]
[1641445307906,9.22e-06,3444.5,3443.0,1.01359091]
[1641445308147,0.00909477,3443.9,3443.0,1.65859091]
[1641445308353,0.00909477,3443.9,3443.0,1.31359091]
[1641445308548,0.00852635,3443.8,3443.0,1.31359091]
[1641445309052,0.00795792,3443.7,3443.0,1.31359091]
[1641445309255,0.00795792,3443.7,3442.3,6.12011787]
[1641445309256,0.00795792,3443.7,3442.3,3.04626259]
[1641445309459,0.7336795,3443.6,3441.8,1.01359091]
[1641445309652,1.0336795,3443.6,3441.8,1.01359091]
[1641445309851,0.00682108,3443.5,3441.9,0.0022737]
[1641445310255,1.06852136,3443.2,3442.8,1.9315701]
[1641445310558,0.00454738,3443.1,3441.9,0.0022737]
[1641445310754,0.13052432,3443.0,3441.9,0.0022737]
[1641445310953,0.14208666,3443.0,3441.9,0.0022737]
[1641445311154,0.00341054,3442.9,3441.9,0.0022737]
[1641445311354,0.00341054,3442.9,3442.3,2.15548199]
[1641445311555,0.00284211,3442.8,3442.3,2.15548199]
[1641445311899,0.00227369,3442.7,3442.3,2.45548199]
[1641445312300,0.00170527,3442.6,3442.3,0.3]
[1641445312502,1.36516214,3442.5,3441.9,0.0022737]
[1641445312700,1.36629898,3442.5,3441.9,0.0022737]
[1641445313000,1.36629898,3442.5,3441.6,0.00397897]
[1641445313401,2.14055151,3442.3,3441.6,0.00397897]
[1641445314202,1.36629898,3442.5,3441.6,0.00397897]
[1641445314804,0.00113684,3442.5,3441.6,0.00397897]
[1641445315006,0.00113684,3442.5,3442.3,0.01250498]
[1641445315406,0.00113684,3442.5,3442.4,15.87926381]
[1641445315662,0.00113684,3442.5,3442.4,0.3]
[1641445316058,6.57451075,3444.6,3442.5,17.05]
[1641445316257,6.57451075,3444.6,3444.2,0.01216958]
[1641445316460,2.12569764,3444.7,3444.2,0.01216958]
[1641445316657,2.12569764,3444.7,3443.8,2.15840765]
[1641445316658,6.57451075,3445.1,3443.2,0.1381471]
[1641445316857,6.57451075,3445.1,3444.1,1.01359091]
[1641445316858,0.01421059,3445.0,3444.1,1.01359091]
[1641445317057,1.38533657,3444.5,3444.1,1.31359091]
[1641445317261,1.33533657,3444.5,3444.1,1.31359091]
[1641445317457,0.01080005,3444.4,3444.1,1.31359091]
[1641445317957,1.33533657,3444.5,3444.4,0.3]
[1641445318360,1.33533657,3444.5,3443.4,1.35859091]
[1641445318361,0.01080005,3444.4,3443.4,1.65859091]
[1641445318557,0.01080005,3444.4,3443.5,0.3]
[1641445318758,0.01023163,3444.3,3443.5,0.3]
[1641445319158,0.0096632,3444.2,3444.1,1.86097183]
[1641445319403,0.0096632,3444.2,3444.1,3.45740725]
[1641445319603,0.0096632,3444.2,3444.1,3.72317183]
[1641445319808,0.16279036,3445.2,3444.2,16.6596]
[1641445320103,0.00511581,3445.1,3444.3,4.56593142]
[1641445320303,0.00511581,3445.1,3444.5,1.0199771]
[1641445320503,1.00968465,3445.9,3444.5,1.0199771]
[1641445320504,0.00454739,3445.0,3444.6,0.645]
[1641445320703,0.00454739,3445.0,3444.7,3.18260392]
[1641445320907,6.57451075,3446.4,3444.8,0.345]
[1641445321103,1.27421839,3448.1,3444.8,0.345]
[1641445321104,6.57451075,3447.2,3444.9,21.26036817]
[1641445321305,6.57451075,3447.2,3446.6,0.2193]
[1641445321510,6.57451075,3447.2,3446.4,0.9959]
[1641445321805,6.57451075,3447.2,3446.5,0.345]
[1641445322206,1.23070919,3447.4,3446.5,1.01359091]
[1641445322413,0.01219559,3447.3,3446.5,1.01359091]
[1641445322603,2.24483267,3446.9,3446.5,1.01359091]
[1641445323004,0.01023162,3446.8,3446.5,1.01359091]
[1641445323451,14.33179677,3446.6,3446.5,1.01359091]
[1641445323654,17.0135,3446.5,3445.2,1.0]
[1641445323854,0.72578,3446.3,3445.2,1.0]
[1641445324055,1.84299,3445.5,3445.2,1.0]
[1641445324256,2.14299,3445.5,3444.8,0.00113685]
[1641445324556,4.36956673,3445.4,3444.0,0.00568423]
[1641445324754,0.7261497,3444.8,3444.0,0.00568423]
[1641445324959,0.72617,3444.3,3443.7,0.00738951]
[1641445325155,2.04685081,3444.2,3443.7,0.00738951]
[1641445325552,1.14693138,3444.1,3443.7,0.00738951]
[1641445326455,1.14693138,3444.1,3443.7,1.88229361]
[1641445326655,0.00170527,3445.3,3443.7,1.88229361]
[1641445326917,0.30170527,3445.3,3443.8,0.00682108]
[1641445327103,0.00113685,3445.2,3443.8,0.00682108]
[1641445327303,2.9,3444.1,3443.8,0.00682108]
[1641445327704,1.1369058,3444.0,3443.8,0.00682108]
[1641445328104,2.9,3444.1,3443.8,0.00682108]
[1641445329112,9.851e-05,3445.0,3444.3,1.07852104]
[1641445329310,9.851e-05,3445.0,3444.3,1.2453]
[1641445329511,9.851e-05,3445.0,3444.4,0.00341054]
[1641445329710,9.851e-05,3445.0,3444.5,0.345]
[1641445329913,9.851e-05,3445.0,3444.5,0.645]
[1641445330120,9.851e-05,3445.0,3444.8,1.88600663]
[1641445330417,9.851e-05,3445.0,3444.8,20.35410153]
[1641445330656,9.851e-05,3445.0,3444.9,0.08780095]
[1641445331461,9.851e-05,3445.0,3444.9,0.72490095]
[1641445331661,0.00170527,3445.3,3444.9,97.50135995]
[1641445331662,5.27e-06,3445.3,3444.9,97.50135995]
[1641445331860,5.27e-06,3445.3,3445.1,1.48849822]
[1641445332058,5.27e-06,3445.3,3445.2,0.68415515]
[1641445332261,8.21813844,3447.8,3445.2,34.52127441]
[1641445332460,8.28976522,3448.2,3445.2,34.52127441]
[1641445332461,8.28976522,3448.2,3445.2,40.46235941]
[1641445332666,1.32851812,3446.1,3445.8,2.15139503]
[1641445332863,1.32851812,3446.1,3445.2,1.01479837]
[1641445333063,0.00397896,3446.0,3445.2,1.01479837]
[1641445333463,0.00341054,3445.9,3445.2,1.01479837]
[1641445333663,2.0206841,3445.8,3445.0,0.0017]
[1641445333868,0.72587,3445.7,3445.0,0.0017]
[1641445334066,0.72587,3445.7,3444.9,3.48889503]
[1641445334067,1.37314369,3445.7,3444.9,3.48889503]
[1641445334263,1.11168129,3445.1,3444.9,3.48889503]
[1641445334506,1.11168129,3445.1,3445.0,0.00170527]
[1641445334702,5.76168129,3445.1,3445.0,0.00170527]
[1641445335104,1.11168129,3445.1,3445.0,0.00170527]
[1641445335409,1.11168129,3445.1,3444.8,0.00284212]
[1641445335803,0.00170527,3445.6,3444.8,0.00284212]
[1641445336205,0.00113685,3445.5,3444.8,0.00284212]
[1641445336605,1.87690495,3445.6,3444.8,0.00284212]
[1641445337007,1.87690495,3445.6,3444.0,0.0073895]
[1641445337008,3.31390892,3445.5,3444.0,0.0073895]
[1641445337209,0.345,3445.4,3444.0,0.0073895]
[1641445337407,0.72604,3445.1,3443.7,0.00909478]
[1641445337608,1.14940392,3444.3,3443.7,0.00909478]
[1641445337807,0.72604,3445.1,3443.7,0.00909478]
[1641445338014,0.00113685,3445.5,3444.3,0.01299889]
[1641445338457,0.00113685,3445.5,3444.4,0.00511581]
[1641445338662,0.00113685,3445.5,3445.0,1.78458983]
[1641445339064,0.00113685,3445.5,3445.1,0.00113685]
[1641445340866,1.13605353,3445.5,3445.1,0.00113685]
[1641445341068,4.06974261,3445.5,3445.1,0.00113685]
[1641445341266,4.06974261,3445.5,3444.8,0.00284212]
[1641445341468,4.06974261,3445.5,3443.7,1.04584848]
[1641445341469,4.79570261,3445.5,3444.1,0.00682108]
[1641445341669,17.96214695,3445.4,3443.8,0.00852635]
[1641445341907,1.92723198,3444.1,3443.8,0.00852635]
[1641445342106,1.14499604,3444.0,3443.8,0.00852635]
[1641445342305,1.14499604,3444.0,3443.6,0.1553]
[1641445342306,1.14499604,3444.0,3443.7,0.00909478]
[1641445343314,1.14499604,3444.0,3442.9,1.6855189]
[1641445343315,2.21489063,3443.9,3442.9,1.6855189]
[1641445343711,1.14499604,3444.0,3443.0,0.01307374]
[1641445344513,0.7261431,3445.0,3443.0,0.01307374]
[1641445344712,1.0,3445.1,3442.7,6.17]
[1641445344713,0.72615,3444.7,3442.8,0.01421059]
[1641445344911,0.6,3444.6,3442.8,0.01421059]
[1641445345116,1.97872934,3444.5,3442.8,0.01421059]
[1641445345313,1.81704999,3442.9,3442.8,0.01421059]
[1641445345957,3.19898262,3442.9,3442.8,0.01421059]
[1641445346356,17.05,3442.8,3442.7,5.70411059]
[1641445346554,18.05,3442.8,3442.7,2.91181059]
[1641445346754,18.05,3442.8,3441.4,1.454]
[1641445346954,18.77655,3442.8,3441.4,1.454]
[1641445347153,13.9,3442.8,3441.5,0.0073895]
[1641445347354,1.01982249,3442.2,3441.5,2.08169251]
[1641445347758,1.01982249,3442.2,3441.6,0.00682108]
[1641445348861,1.85076342,3442.9,3441.6,0.00682108]
[1641445349060,1.85076342,3442.9,3441.6,1.00682108]
[1641445349502,1.85076342,3442.9,3441.7,0.00625265]
[1641445350006,1.19393972,3442.6,3441.7,0.00625265]
[1641445351004,0.03371343,3442.9,3441.7,0.00625265]
[1641445351213,0.03371343,3442.9,3441.7,0.04366725]
[1641445351405,0.03371343,3442.9,3441.7,3.26627479]
[1641445351607,3.45381988,3445.1,3442.4,0.72605]
[1641445351804,0.5,3444.8,3442.4,1.88785]
[1641445352004,0.0119369,3444.9,3442.6,0.3]
[1641445352205,0.01254579,3444.3,3442.6,0.3]
[1641445352406,0.01254579,3444.3,3442.5,0.00170527]
[1641445352605,2.9,3442.9,3442.5,0.00170527]
[1641445352804,4.79459507,3442.9,3442.4,0.00227369]
[1641445353005,2.9,3442.9,3442.4,0.00227369]
[1641445353257,2.9,3442.9,3442.2,0.37578835]
[1641445353455,2.9,3442.9,3442.3,0.46504211]
[1641445353658,2.9,3442.9,3442.4,1.7971031]
[1641445353862,2.9,3442.9,3442.5,0.03227781]
[1641445354060,2.9,3442.9,3442.6,0.345]
[1641445354260,2.9,3442.9,3442.6,0.00113684]
[1641445354660,2.9,3442.9,3441.7,0.00625265]
[1641445354857,2.9,3442.9,3441.8,0.00568423]
[1641445355057,2.9,3442.9,3441.7,0.00625265]
[1641445355257,1.2096558,3442.5,3441.7,0.00625265]
[1641445355457,2.9,3442.9,3441.8,0.7262665]
[1641445355859,2.9,3442.9,3441.9,0.30511581]
[1641445356257,2.9,3442.9,3442.0,0.00454738]
[1641445356463,3.35036883,3442.7,3442.0,0.00454738]
[1641445357500,3.35036883,3442.7,3441.6,0.00682108]
[1641445357701,1.77528572,3441.8,3441.6,0.00682108]
[1641445357901,1.77528572,3441.8,3441.0,1.5910038]
[1641445357902,1.27608492,3441.7,3441.1,0.0096632]
[1641445358502,1.27608492,3441.7,3440.1,0.74202503]
[1641445358710,1.27608492,3441.7,3440.2,0.01477901]
[1641445358906,1.83891463,3440.9,3440.2,0.01477901]
[1641445359113,1.29763377,3440.9,3440.2,0.01477901]
[1641445359506,0.01227224,3442.0,3440.2,0.01477901]
[1641445359706,1.2369,3442.2,3440.4,0.01241782]